[Event "Turkish Club Cup 2019"]
[Site "Konya"]
[Date "2019.07.20"]
[Round "7"]
[White "Kocyigit, Buse Naz"]
[Black "Kiziltas, Ece Su"]
[Result "0-1"]
[ECO "A40"]
[WhiteElo "2045"]
[BlackElo "1400"]
[Annotator "NA"]
[PlyCount "95"]
[EventDate "2019.07.16"]
[EventType "team-tourn"]
[EventCountry "TUR"]
[SourceTitle "playchess.com"]
[Source "ChessBase"]
[SourceQuality "1"]
[TimeControl "5400+30"]

1. d4 g6 2. Bg5 Bg7 3. Qd2 d6 4. Nc3 a6 5. O-O-O b5 6. e4 Nd7 7. h4 h6 8. Be3 Bb7 9. f3 c5 {[%emt 0:15:30]} 10. Nge2 {[%emt 0:41:00]} c4 {[%emt 0:04:30]} 11. Nb1 {[%emt 0:09:30]} a5 {[%emt 0:06:30]} 12. Ng3 {[%emt 0:01:30]} Rc8 {[%emt 0:05:30]} 13. h5 {[%emt 0:02:30]} g5 {[%emt 0:01:30]} 14. f4 {[%emt 0:07:30]} gxf4 {[%emt 0:04:30]} 15. Bxf4 {[%emt 0:00:30]} b4 {[%emt 0:01:30]} 16. c3 {[%emt 0:00:30]} b3 {[%emt 0:11:30]} 17. axb3 {[%emt 0:07:30]} cxb3 {[%emt 0:00:30]} 18. Bb5 {[%emt 0:17:56]} Bc6 {[%emt 0:02:30]} 19. Bxc6 {[%emt 0:01:06]} Rxc6 {[%emt 0:00:30]} 20. Nf5 {[%emt 0:00:00]} Bf8 {[%emt 0:02:30]} 21. e5 {[%emt 0:02:51]} d5 {[%emt 0:00:30]} 22. Rde1 {[%emt 0:02:42]} e6 {[%emt 0:02:30]} 23. Nd6+ {[%emt 0:02:08]} Bxd6 {[%emt 0:00:30]} 24. exd6 {[%emt 0:00:02]} Qf6 {[%emt 0:13:30]} 25. Rhf1 {[%emt 0:01:27]} Qg7 {[%emt 0:00:30]} 26. Be5 {[%emt 0:03:26]} Ngf6 {[%emt 0:03:30]} 27. Rxf6 {[%emt 0:00:46]} Nxf6 {[%emt 0:00:30]} 28. Qf2 {[%emt 0:00:35]} Qg5+ {[%emt 0:05:30]} 29. Qd2 {[%emt 0:00:27]} Qf5 {[%emt 0:03:10]} 30. g4 {[%emt 0:00:16]} Qxg4 {[%emt 0:06:51]} 31. Bxf6 {[%emt 0:00:41]} Rg8 {[%emt 0:00:39]} 32. Qxh6 {[%emt 0:00:32]} Qf5 {[%emt 0:00:31]} 33. Na3 {[%emt 0:00:18]} Qf2 {[%emt 0:01:08]} 34. Qe3 {[%emt 0:00:48]} Qxf6 {[%emt 0:00:12]} 35. h6 {[%emt 0:00:06]} Rh8 {[%emt 0:01:18]} 36. Rh1 {[%emt 0:00:01]} Rh7 {[%emt 0:00:36]} 37. Nb5 {[%emt 0:01:06]} Kd7 {[%emt 0:01:02]} 38. Qd2 {[%emt 0:00:45]} Rc8 {[%emt 0:01:11]} 39. Na7 {[%emt 0:00:29]} Rg8 {[%emt 0:01:00]} 40. Qd3 {[%emt 0:00:28]} Qf4+ {[%emt 0:02:33]} 41. Kd1 {[%emt 0:00:01]} Rxh6 {[%emt 0:03:07]} 42. Qb5+ {[%emt 0:00:12]} Kxd6 {[%emt 0:00:00]} 43. Qc5+ {[%emt 0:01:18]} Kd7 {[%emt 0:00:08]} 44. Qb5+ {[%emt 0:00:27]} Ke7 {[%emt 0:00:31]} 45. Nc6+ {[%emt 0:00:57]} Kf6 {[%emt 0:00:11]} 46. Rf1 {[%emt 0:00:04]} Rh1 {[%emt 0:00:31]} 47. Rxh1 {[%emt 0:00:29]} Qf3+ {[%emt 0:00:21]} 48. Kd2 {[%emt 0:00:35]} 0-1

[Event "Turkish Club Cup 2019"]
[Site "Konya"]
[Date "2019.07.20"]
[Round "7"]
[White "Cingoz, Ozan"]
[Black "Mutlu, Bunyamin"]
[Result "1-0"]
[ECO "E60"]
[WhiteElo "2030"]
[BlackElo "1511"]
[Annotator "NA"]
[PlyCount "91"]
[EventDate "2019.07.16"]
[EventType "team-tourn"]
[EventCountry "TUR"]
[SourceTitle "playchess.com"]
[Source "ChessBase"]
[SourceQuality "1"]
[TimeControl "5400+30"]

1. Nf3 {[%emt 0:00:30]} Nf6 {[%emt 0:00:30]} 2. g3 {[%emt 0:01:30]} g6 {[%emt 0:00:30]} 3. Bg2 {[%emt 0:00:30]} Bg7 {[%emt 0:00:00]} 4. O-O {[%emt 0:00:30]} O-O {[%emt 0:00:00]} 5. c4 {[%emt 0:00:30]} d6 {[%emt 0:01:30]} 6. Nc3 {[%emt 0:01:30]} c5 {[%emt 0:01:30]} 7. b3 {[%emt 0:07:30]} Nc6 {[%emt 0:07:30]} 8. Bb2 {[%emt 0:00:30]} a6 {[%emt 0:03:30]} 9. d4 {[%emt 0:05:30]} Rb8 {[%emt 0:03:30]} 10. Qd2 {[%emt 0:32:30]} b5 {[%emt 0:18:30]} 11. cxb5 {[%emt 0:05:30]} axb5 {[%emt 0:00:30]} 12. Rfd1 {[%emt 0:08:30]} c4 {[%emt 0:12:30]} 13. bxc4 {[%emt 0:02:30]} bxc4 {[%emt 0:03:30]} 14. d5 {[%emt 0:01:30]} Rxb2 {[%emt 0:19:30]} 15. Qxb2 {[%emt 0:00:00]} Ne4 {[%emt 0:00:30]} 16. Rac1 {[%emt 0:11:09]} Nxc3 {[%emt 0:07:02]} 17. Rxc3 {[%emt 0:00:08]} Qa5 {[%emt 0:00:20]} 18. dxc6 {[%emt 0:01:57]} Bxc3 {[%emt 0:01:37]} 19. Qc2 {[%emt 0:00:21]} d5 {[%emt 0:03:35]} 20. e4 {[%emt 0:04:30]} e6 {[%emt 0:09:08]} 21. Nd4 {[%emt 0:04:00]} e5 {[%emt 0:02:12]} 22. Ne2 {[%emt 0:00:27]} d4 {[%emt 0:00:11]} 23. Nxc3 {[%emt 0:00:45]} Qxc3 {[%emt 0:03:12]} 24. Qxc3 {[%emt 0:06:44]} dxc3 {[%emt 0:00:31]} 25. Rc1 {[%emt 0:00:30]} Ba6 {[%emt 0:00:30]} 26. Bh3 {[%emt 0:00:30]} f5 {[%emt 0:00:30]} 27. Rxc3 {[%emt 0:00:30]} Kg7 {[%emt 0:00:30]} 28. exf5 {[%emt 0:00:30]} gxf5 {[%emt 0:00:30]} 29. c7 {[%emt 0:00:30]} Kg6 {[%emt 0:00:30]} 30. g4 {[%emt 0:00:30]} f4 {[%emt 0:00:30]} 31. Bf1 {[%emt 0:00:30]} Kg5 {[%emt 0:00:30]} 32. Bxc4 {[%emt 0:00:30]} Bb7 {[%emt 0:00:30]} 33. Be6 {[%emt 0:00:30]} f3 {[%emt 0:00:30]} 34. c8=Q {[%emt 0:00:30]} Bxc8 {[%emt 0:00:30]} 35. Bxc8 {[%emt 0:00:30]} Rd8 {[%emt 0:00:30]} 36. Rc1 {[%emt 0:00:30]} Kf4 {[%emt 0:00:30]} 37. Bf5 {[%emt 0:00:30]} Rd2 {[%emt 0:00:30]} 38. h3 {[%emt 0:01:33]} Rxa2 {[%emt 0:00:50]} 39. Bxh7 {[%emt 0:00:05]} Re2 {[%emt 0:00:10]} 40. Rc2 {[%emt 0:00:18]} e4 {[%emt 0:00:24]} 41. Rc4 {[%emt 0:00:14]} Re1+ {[%emt 0:00:44]} 42. Kh2 {[%emt 0:00:01]} Rf1 {[%emt 0:00:32]} 43. Rxe4+ {[%emt 0:00:30]} Kg5 {[%emt 0:00:05]} 44. Kg3 {[%emt 0:00:00]} Rh1 {[%emt 0:00:29]} 45. h4+ {[%emt 0:00:22]} Kh6 {[%emt 0:00:23]} 46. Bf5 {[%emt 0:00:09]} 1-0

[Event "Turkish Club Cup 2019"]
[Site "Konya"]
[Date "2019.07.20"]
[Round "7"]
[White "Taskaya, Muhammed"]
[Black "Guder, Serkan"]
[Result "1-0"]
[ECO "B75"]
[WhiteElo "2011"]
[BlackElo "1872"]
[Annotator "NA"]
[PlyCount "107"]
[EventDate "2019.07.16"]
[EventType "team-tourn"]
[EventCountry "TUR"]
[SourceTitle "playchess.com"]
[Source "ChessBase"]
[SourceQuality "1"]
[TimeControl "5400+30"]

1. e4 c5 2. Nf3 g6 3. d4 cxd4 4. Nxd4 Bg7 5. Nc3 Nc6 6. Be3 d6 7. Qd2 Nf6 8. f3 Bd7 9. O-O-O a6 10. Nxc6 Bxc6 11. Bh6 Bxh6 12. Qxh6 Qa5 13. Bc4 b5 {[%emt 0:19:30]} 14. Bb3 {[%emt 0:35:00]} b4 {[%emt 0:07:30]} 15. Ne2 {[%emt 0:12:30]} Ba4 {[%emt 0:05:30]} 16. Bxa4+ {[%emt 0:15:30]} Qxa4 {[%emt 0:05:30]} 17. Kb1 {[%emt 0:00:30]} Rc8 {[%emt 0:08:30]} 18. Rd2 {[%emt 0:00:30]} Rc5 {[%emt 0:03:30]} 19. g4 {[%emt 0:02:30]} g5 {[%emt 0:15:30]} 20. h4 {[%emt 0:04:30]} Rg8 {[%emt 0:00:30]} 21. h5 {[%emt 0:04:30]} Ra5 {[%emt 0:11:30]} 22. Nc1 {[%emt 0:00:30]} Qc6 {[%emt 0:04:43]} 23. Re1 {[%emt 0:06:26]} Qc4 {[%emt 0:02:35]} 24. Nb3 {[%emt 0:01:13]} Re5 {[%emt 0:00:29]} 25. Nd4 {[%emt 0:03:23]} a5 {[%emt 0:03:03]} 26. Nf5 {[%emt 0:03:34]} Kd7 {[%emt 0:02:28]} 27. Nxd6 {[%emt 0:03:35]} exd6 {[%emt 0:01:21]} 28. Qxf6 {[%emt 0:00:02]} Qe6 {[%emt 0:00:53]} 29. Qxe6+ {[%emt 0:00:30]} Kxe6 {[%emt 0:00:30]} 30. Red1 {[%emt 0:00:00]} Rd8 {[%emt 0:00:00]} 31. Rd5 {[%emt 0:00:00]} f6 {[%emt 0:00:59]} 32. R1d4 {[%emt 0:01:34]} h6 {[%emt 0:00:22]} 33. Kc1 {[%emt 0:00:00]} Ke7 {[%emt 0:01:44]} 34. Kd2 {[%emt 0:00:16]} Rc8 {[%emt 0:00:55]} 35. Kd3 {[%emt 0:04:16]} Rc6 {[%emt 0:02:02]} 36. Rc4 {[%emt 0:00:09]} Rxc4 {[%emt 0:02:26]} 37. Kxc4 {[%emt 0:00:03]} Ke6 {[%emt 0:00:00]} 38. Kd4 {[%emt 0:00:54]} Kd7 {[%emt 0:02:06]} 39. Rxe5 {[%emt 0:00:39]} fxe5+ {[%emt 0:00:47]} 40. Kd5 {[%emt 0:00:30]} Kc7 {[%emt 0:00:00]} 41. c4 {[%emt 0:00:34]} bxc3 {[%emt 0:00:13]} 42. bxc3 {[%emt 0:00:00]} a4 {[%emt 0:00:16]} 43. a3 {[%emt 0:01:41]} Kd7 {[%emt 0:00:11]} 44. c4 {[%emt 0:00:39]} Kc7 {[%emt 0:01:25]} 45. c5 {[%emt 0:00:06]} dxc5 {[%emt 0:00:52]} 46. Kxc5 {[%emt 0:00:22]} Kd7 {[%emt 0:01:24]} 47. Kd5 {[%emt 0:01:24]} Kc7 {[%emt 0:00:28]} 48. Kxe5 {[%emt 0:00:23]} Kc6 {[%emt 0:00:05]} 49. Kf6 {[%emt 0:00:29]} Kc5 {[%emt 0:00:44]} 50. e5 {[%emt 0:00:30]} Kc4 {[%emt 0:00:00]} 51. e6 {[%emt 0:00:00]} Kb3 {[%emt 0:01:07]} 52. e7 {[%emt 0:00:00]} Kxa3 {[%emt 0:00:28]} 53. e8=Q {[%emt 0:00:00]} Kb3 {[%emt 0:02:04]} 54. Qb5+ {[%emt 0:00:00]} 1-0

[Event "Turkish Club Cup 2019"]
[Site "Konya"]
[Date "2019.07.20"]
[Round "7"]
[White "Caputcuoglu, Zeki Berke"]
[Black "Kargi, Mert"]
[Result "1-0"]
[ECO "A32"]
[WhiteElo "2010"]
[BlackElo "1729"]
[Annotator "NA"]
[PlyCount "73"]
[EventDate "2019.07.16"]
[EventType "team-tourn"]
[EventCountry "TUR"]
[SourceTitle "playchess.com"]
[Source "ChessBase"]
[SourceQuality "1"]
[TimeControl "5400+30"]

1. Nf3 {[%emt 0:00:30]} Nf6 {[%emt 0:00:30]} 2. d4 {[%emt 0:00:30]} c5 {[%emt 0:00:30]} 3. c4 {[%emt 0:00:30]} e6 {[%emt 0:00:30]} 4. g3 {[%emt 0:00:30]} cxd4 {[%emt 0:04:30]} 5. Nxd4 {[%emt 0:00:30]} d6 {[%emt 0:00:30]} 6. Bg2 {[%emt 0:00:30]} Be7 {[%emt 0:00:30]} 7. O-O {[%emt 0:01:30]} O-O {[%emt 0:01:30]} 8. Nc3 {[%emt 0:00:30]} e5 {[%emt 0:03:30]} 9. Nc2 {[%emt 0:02:30]} Nc6 {[%emt 0:02:30]} 10. b3 {[%emt 0:02:30]} Be6 {[%emt 0:01:30]} 11. Bb2 {[%emt 0:00:30]} Rc8 {[%emt 0:01:30]} 12. Ne3 {[%emt 0:02:30]} Qd7 {[%emt 0:03:30]} 13. Ncd5 {[%emt 0:03:30]} Bd8 {[%emt 0:04:30]} 14. Qd2 {[%emt 0:07:30]} Bxd5 {[%emt 0:06:30]} 15. Nxd5 {[%emt 0:03:30]} Nxd5 {[%emt 0:01:30]} 16. Bxd5 {[%emt 0:04:30]} Bb6 {[%emt 0:05:30]} 17. Bc3 {[%emt 0:10:30]} Rfd8 {[%emt 0:05:30]} 18. e3 {[%emt 0:08:30]} Rc7 {[%emt 0:14:30]} 19. a4 {[%emt 0:01:30]} a6 {[%emt 0:00:00]} 20. a5 {[%emt 0:01:30]} Ba7 {[%emt 0:00:00]} 21. Rfd1 {[%emt 0:02:30]} Ne7 {[%emt 0:02:30]} 22. Qb2 {[%emt 0:02:30]} Nxd5 {[%emt 0:13:30]} 23. Rxd5 {[%emt 0:00:30]} Rc5 {[%emt 0:00:00]} 24. Rad1 {[%emt 0:00:30]} Qc7 {[%emt 0:11:37]} 25. Qd2 {[%emt 0:03:30]} Rxd5 {[%emt 0:05:06]} 26. Qxd5 {[%emt 0:00:00]} Bc5 {[%emt 0:01:51]} 27. b4 {[%emt 0:01:00]} Ba7 {[%emt 0:00:01]} 28. Bxe5 {[%emt 0:00:30]} Rc8 {[%emt 0:01:59]} 29. Bxd6 {[%emt 0:00:30]} Qd7 {[%emt 0:00:53]} 30. Bc5 {[%emt 0:02:30]} Qxd5 {[%emt 0:00:52]} 31. Rxd5 {[%emt 0:00:30]} Bxc5 {[%emt 0:00:30]} 32. Rxc5 {[%emt 0:00:30]} Rxc5 {[%emt 0:00:30]} 33. bxc5 {[%emt 0:00:30]} Kf8 {[%emt 0:00:30]} 34. Kf1 {[%emt 0:00:30]} Ke7 {[%emt 0:00:30]} 35. Ke2 {[%emt 0:00:00]} Kd7 {[%emt 0:00:03]} 36. Kd3 {[%emt 0:00:00]} Kc6 {[%emt 0:00:30]} 37. Kd4 {[%emt 0:00:00]} 1-0

[Event "Turkish Club Cup 2019"]
[Site "Konya"]
[Date "2019.07.20"]
[Round "7"]
[White "Anil, Ali Fazil"]
[Black "Gundogdu, Mustafa Yalin"]
[Result "1/2-1/2"]
[ECO "B78"]
[WhiteElo "1999"]
[BlackElo "1651"]
[Annotator "NA"]
[PlyCount "92"]
[EventDate "2019.07.16"]
[EventType "team-tourn"]
[EventCountry "TUR"]
[SourceTitle "playchess.com"]
[Source "ChessBase"]
[SourceQuality "1"]
[TimeControl "5400+30"]

1. e4 {[%emt 0:00:30]} c5 {[%emt 0:00:30]} 2. Nf3 {[%emt 0:00:00]} d6 {[%emt 0:00:30]} 3. d4 {[%emt 0:00:00]} cxd4 {[%emt 0:00:00]} 4. Nxd4 {[%emt 0:00:30]} Nf6 {[%emt 0:00:00]} 5. Nc3 {[%emt 0:00:00]} g6 {[%emt 0:00:00]} 6. Be3 {[%emt 0:00:00]} Bg7 {[%emt 0:01:00]} 7. f3 {[%emt 0:00:00]} O-O {[%emt 0:00:30]} 8. Qd2 {[%emt 0:00:00]} Nc6 {[%emt 0:00:30]} 9. Bc4 {[%emt 0:00:30]} Bd7 {[%emt 0:00:30]} 10. O-O-O {[%emt 0:00:00]} Rc8 {[%emt 0:01:30]} 11. Bb3 {[%emt 0:00:00]} Ne5 {[%emt 0:00:30]} 12. Kb1 {[%emt 0:01:30]} Nc4 {[%emt 0:04:30]} 13. Bxc4 {[%emt 0:01:30]} Rxc4 {[%emt 0:00:00]} 14. g4 {[%emt 0:03:30]} b5 {[%emt 0:08:00]} 15. b3 {[%emt 0:00:30]} Rc8 {[%emt 0:02:30]} 16. Ndxb5 {[%emt 0:18:30]} Qa5 {[%emt 0:40:30]} 17. a4 {[%emt 0:21:30]} Rfd8 {[%emt 0:27:02]} 18. Nd5 {[%emt 0:11:30]} Qxd2 {[%emt 0:00:18]} 19. Rxd2 {[%emt 0:03:30]} Nxd5 {[%emt 0:00:48]} 20. Rxd5 {[%emt 0:03:30]} a6 {[%emt 0:01:11]} 21. Na3 {[%emt 0:05:30]} Rc3 {[%emt 0:01:50]} 22. Rd3 {[%emt 0:05:30]} Rb8 {[%emt 0:05:29]} 23. Rxc3 {[%emt 0:13:32]} Bxc3 {[%emt 0:00:01]} 24. Ka2 {[%emt 0:00:31]} f5 {[%emt 0:03:19]} 25. gxf5 {[%emt 0:03:23]} gxf5 {[%emt 0:00:19]} 26. Rd1 {[%emt 0:01:06]} fxe4 {[%emt 0:00:44]} 27. fxe4 {[%emt 0:00:20]} Bc6 {[%emt 0:00:43]} 28. Bd4 {[%emt 0:00:41]} Bb4 {[%emt 0:00:39]} 29. e5 {[%emt 0:01:30]} Be4 {[%emt 0:00:31]} 30. c3 {[%emt 0:01:06]} Bxa3 {[%emt 0:00:28]} 31. Kxa3 {[%emt 0:00:23]} Bc2 {[%emt 0:00:46]} 32. Rg1+ {[%emt 0:00:11]} Kf7 {[%emt 0:00:00]} 33. b4 {[%emt 0:00:21]} Rg8 {[%emt 0:00:27]} 34. Rf1+ {[%emt 0:01:10]} Ke6 {[%emt 0:00:45]} 35. exd6 {[%emt 0:00:12]} exd6 {[%emt 0:00:03]} 36. b5 {[%emt 0:01:56]} axb5 {[%emt 0:01:03]} 37. axb5 {[%emt 0:00:14]} Ra8+ {[%emt 0:00:29]} 38. Kb2 {[%emt 0:00:06]} Bd3 {[%emt 0:00:00]} 39. Rf6+ {[%emt 0:00:30]} Ke7 {[%emt 0:00:20]} 40. b6 {[%emt 0:00:01]} Rb8 {[%emt 0:01:32]} 41. Rf3 {[%emt 0:00:12]} Bg6 {[%emt 0:00:03]} 42. Kb3 {[%emt 0:00:35]} Bf7+ {[%emt 0:00:33]} 43. Kb4 {[%emt 0:00:28]} Be8 {[%emt 0:00:34]} 44. Rg3 {[%emt 0:01:24]} Kf8 {[%emt 0:00:25]} 45. Rg7 {[%emt 0:00:54]} Rxb6+ {[%emt 0:00:16]} 46. Bxb6 {[%emt 0:00:42]} Kxg7 {[%emt 0:00:02]} 1/2-1/2

[Event "Turkish Club Cup 2019"]
[Site "Konya"]
[Date "2019.07.20"]
[Round "7"]
[White "Kul, Ozdemir Efe"]
[Black "Guner, Bulent"]
[Result "1/2-1/2"]
[ECO "B25"]
[WhiteElo "1974"]
[BlackElo "1979"]
[Annotator "NA"]
[PlyCount "96"]
[EventDate "2019.07.16"]
[EventType "team-tourn"]
[EventCountry "TUR"]
[SourceTitle "playchess.com"]
[Source "ChessBase"]
[SourceQuality "1"]
[TimeControl "5400+30"]

1. Nf3 Nf6 2. g3 g6 3. Bg2 Bg7 4. O-O c5 5. d3 Nc6 6. Nc3 d6 7. h3 O-O 8. e4 e5 9. Ne1 Nh5 10. Nd5 {[%emt 0:25:00]} Ne7 {[%emt 0:28:00]} 11. Nxe7+ {[%emt 0:05:30]} Qxe7 {[%emt 0:00:30]} 12. Be3 {[%emt 0:00:00]} Bd7 {[%emt 0:07:30]} 13. c3 {[%emt 0:05:00]} Rac8 {[%emt 0:06:30]} 14. Kh2 {[%emt 0:01:30]} h6 {[%emt 0:01:30]} 15. Nc2 {[%emt 0:10:30]} Kh7 {[%emt 0:04:30]} 16. a4 {[%emt 0:07:30]} b6 {[%emt 0:03:30]} 17. b4 {[%emt 0:08:30]} Be6 {[%emt 0:07:30]} 18. c4 {[%emt 0:02:30]} Qe8 {[%emt 0:13:30]} 19. Bf3 {[%emt 0:01:30]} Nf6 {[%emt 0:07:40]} 20. bxc5 {[%emt 0:02:30]} bxc5 {[%emt 0:00:43]} 21. Na3 {[%emt 0:01:30]} a6 {[%emt 0:00:40]} 22. Qd2 {[%emt 0:01:30]} Rb8 {[%emt 0:01:15]} 23. Qa5 {[%emt 0:03:30]} Qc6 {[%emt 0:00:39]} 24. Rfb1 {[%emt 0:00:30]} Bd7 {[%emt 0:02:12]} 25. Bd1 {[%emt 0:01:30]} Ng8 {[%emt 0:01:04]} 26. Rxb8 {[%emt 0:01:30]} Rxb8 {[%emt 0:00:47]} 27. Rb1 {[%emt 0:00:00]} Rxb1 {[%emt 0:04:10]} 28. Nxb1 {[%emt 0:02:00]} Nf6 {[%emt 0:00:50]} 29. Nc3 {[%emt 0:02:30]} Qc8 {[%emt 0:00:38]} 30. g4 {[%emt 0:01:00]} g5 {[%emt 0:00:21]} 31. Qb6 {[%emt 0:00:43]} Bf8 {[%emt 0:00:18]} 32. f3 {[%emt 0:01:29]} Be7 {[%emt 0:00:23]} 33. Kg2 {[%emt 0:00:26]} Kg7 {[%emt 0:01:04]} 34. Bd2 {[%emt 0:00:17]} Qc6 {[%emt 0:00:44]} 35. Qb2 {[%emt 0:04:09]} Bd8 {[%emt 0:00:30]} 36. Ne2 {[%emt 0:02:34]} Ng8 {[%emt 0:01:00]} 37. f4 {[%emt 0:01:16]} f6 {[%emt 0:00:08]} 38. fxg5 {[%emt 0:04:10]} fxg5 {[%emt 0:00:56]} 39. Ng3 {[%emt 0:00:17]} Ne7 {[%emt 0:01:14]} 40. Nh5+ {[%emt 0:02:49]} Kg8 {[%emt 0:02:45]} 41. Qb8 {[%emt 0:00:38]} Nc8 {[%emt 0:00:56]} 42. a5 {[%emt 0:01:48]} Kf7 {[%emt 0:00:38]} 43. Bc3 {[%emt 0:00:30]} Qc7 {[%emt 0:04:46]} 44. Qb2 {[%emt 0:00:11]} Bf6 {[%emt 0:00:00]} 45. Qf2 {[%emt 0:01:57]} Qd8 {[%emt 0:00:20]} 46. Bd2 {[%emt 0:00:00]} Qh8 {[%emt 0:00:15]} 47. h4 {[%emt 0:00:52]} Ke7 {[%emt 0:00:41]} 48. Nxf6 {[%emt 0:00:51]} Qxf6 {[%emt 0:00:13]} 1/2-1/2

[Event "Turkish Club Cup 2019"]
[Site "Konya"]
[Date "2019.07.20"]
[Round "7"]
[White "Akcan, Umit"]
[Black "Ipek, Ekin"]
[Result "1-0"]
[ECO "B53"]
[WhiteElo "1960"]
[BlackElo "1706"]
[Annotator "NA"]
[PlyCount "61"]
[EventDate "2019.07.16"]
[EventType "team-tourn"]
[EventCountry "TUR"]
[SourceTitle "playchess.com"]
[Source "ChessBase"]
[SourceQuality "1"]
[TimeControl "5400+30"]

1. e4 {[%emt 0:00:30]} c5 {[%emt 0:00:30]} 2. Nf3 {[%emt 0:00:00]} d6 {[%emt 0:00:30]} 3. Bb5+ {[%emt 0:00:00]} Nc6 {[%emt 0:00:30]} 4. d4 {[%emt 0:02:30]} cxd4 {[%emt 0:00:00]} 5. Qxd4 {[%emt 0:00:30]} Bd7 {[%emt 0:00:00]} 6. Bxc6 {[%emt 0:00:00]} Bxc6 {[%emt 0:00:30]} 7. Nc3 {[%emt 0:00:00]} Nf6 {[%emt 0:02:30]} 8. Bg5 {[%emt 0:00:00]} e6 {[%emt 0:00:00]} 9. O-O-O {[%emt 0:00:00]} Be7 {[%emt 0:01:00]} 10. Rhe1 {[%emt 0:00:30]} O-O {[%emt 0:05:30]} 11. Kb1 {[%emt 0:00:00]} Qa5 {[%emt 0:04:30]} 12. Qd2 {[%emt 0:00:00]} Kh8 {[%emt 0:04:30]} 13. Nd4 {[%emt 0:02:30]} Rac8 {[%emt 0:08:30]} 14. f3 {[%emt 0:06:30]} h6 {[%emt 0:03:30]} 15. Be3 {[%emt 0:03:30]} a6 {[%emt 0:19:30]} 16. g4 {[%emt 0:10:30]} Nh7 {[%emt 0:02:30]} 17. h4 {[%emt 0:12:30]} b5 {[%emt 0:04:30]} 18. g5 {[%emt 0:22:30]} b4 {[%emt 0:06:30]} 19. gxh6 {[%emt 0:21:09]} bxc3 {[%emt 0:00:30]} 20. hxg7+ {[%emt 0:02:51]} Kxg7 {[%emt 0:00:30]} 21. Rg1+ {[%emt 0:00:11]} Kh8 {[%emt 0:01:30]} 22. Nxc6 {[%emt 0:00:07]} Rxc6 {[%emt 0:01:30]} 23. Qg2 {[%emt 0:00:10]} Bf6 {[%emt 0:10:30]} 24. Bh6 {[%emt 0:00:35]} Rb8 {[%emt 0:00:30]} 25. Bg7+ {[%emt 0:00:35]} Kg8 {[%emt 0:00:00]} 26. Bxf6+ {[%emt 0:00:00]} Ng5 {[%emt 0:02:00]} 27. Qxg5+ {[%emt 0:00:15]} Qxg5 {[%emt 0:00:30]} 28. Rxg5+ {[%emt 0:00:00]} Kh7 {[%emt 0:00:00]} 29. Rdg1 {[%emt 0:02:47]} Rxb2+ {[%emt 0:01:00]} 30. Kc1 {[%emt 0:00:07]} Rc5 {[%emt 0:05:19]} 31. e5 {[%emt 0:00:05]} 1-0

[Event "Turkish Club Cup 2019"]
[Site "Konya"]
[Date "2019.07.20"]
[Round "7"]
[White "Yasin, Hur"]
[Black "Atas, Yunus"]
[Result "1-0"]
[ECO "B48"]
[WhiteElo "1953"]
[BlackElo "1876"]
[Annotator "NA"]
[PlyCount "131"]
[EventDate "2019.07.16"]
[EventType "team-tourn"]
[EventCountry "TUR"]
[SourceTitle "playchess.com"]
[Source "ChessBase"]
[SourceQuality "1"]
[TimeControl "5400+30"]

1. e4 c5 2. Nf3 e6 3. d4 cxd4 4. Nxd4 Nc6 5. Nc3 Qc7 6. Be3 Nf6 7. Be2 a6 8. a3 Be7 9. f4 d6 10. Nxc6 bxc6 11. Bf3 Bb7 12. O-O O-O 13. Qe1 d5 14. e5 Nd7 15. Ne2 c5 16. c3 {[%emt 0:17:00]} f6 {[%emt 0:45:00]} 17. exf6 {[%emt 0:02:30]} Nxf6 {[%emt 0:11:30]} 18. b4 {[%emt 0:00:30]} Rae8 {[%emt 0:06:30]} 19. Kh1 {[%emt 0:09:30]} cxb4 {[%emt 0:10:30]} 20. axb4 {[%emt 0:00:00]} Bd6 {[%emt 0:00:00]} 21. Qd2 {[%emt 0:02:00]} e5 {[%emt 0:00:00]} 22. fxe5 {[%emt 0:02:30]} Bxe5 {[%emt 0:01:30]} 23. Bf4 {[%emt 0:02:30]} Bxf4 {[%emt 0:06:30]} 24. Nxf4 {[%emt 0:00:30]} Qe5 {[%emt 0:02:38]} 25. Nd3 {[%emt 0:02:30]} Qe3 {[%emt 0:03:19]} 26. Qxe3 {[%emt 0:14:30]} Rxe3 {[%emt 0:00:30]} 27. Nc5 {[%emt 0:00:30]} Bc6 {[%emt 0:00:26]} 28. c4 {[%emt 0:01:30]} Ne4 {[%emt 0:02:34]} 29. Bxe4 {[%emt 0:10:30]} Rxf1+ {[%emt 0:02:46]} 30. Rxf1 {[%emt 0:00:30]} dxe4 {[%emt 0:00:00]} 31. Nxa6 {[%emt 0:00:30]} Rc3 {[%emt 0:00:19]} 32. b5 {[%emt 0:00:30]} Bd7 {[%emt 0:08:41]} 33. Nc5 {[%emt 0:06:30]} Bc8 {[%emt 0:02:40]} 34. b6 {[%emt 0:02:30]} Rxc4 {[%emt 0:00:59]} 35. b7 {[%emt 0:00:30]} Bxb7 {[%emt 0:00:16]} 36. Nxb7 {[%emt 0:00:30]} e3 {[%emt 0:00:00]} 37. Kg1 {[%emt 0:00:30]} Rc7 {[%emt 0:01:11]} 38. Nd6 {[%emt 0:00:30]} e2 {[%emt 0:00:28]} 39. Re1 {[%emt 0:00:30]} Rd7 {[%emt 0:00:36]} 40. Ne4 {[%emt 0:00:30]} h6 {[%emt 0:00:26]} 41. Rxe2 {[%emt 0:00:30]} Kh7 {[%emt 0:00:21]} 42. g4 {[%emt 0:00:30]} Rd3 {[%emt 0:00:21]} 43. Kg2 {[%emt 0:00:30]} Ra3 {[%emt 0:00:19]} 44. Ng3 {[%emt 0:01:30]} Ra4 {[%emt 0:00:07]} 45. Kf3 {[%emt 0:00:30]} Ra3+ {[%emt 0:00:06]} 46. Re3 {[%emt 0:00:30]} Ra1 {[%emt 0:00:02]} 47. h4 {[%emt 0:00:30]} Kg6 {[%emt 0:00:21]} 48. Kf4 {[%emt 0:01:30]} Kf7 {[%emt 0:00:01]} 49. Nf5 {[%emt 0:01:30]} Ra4+ {[%emt 0:02:13]} 50. Kf3 {[%emt 0:00:30]} Kf6 {[%emt 0:00:05]} 51. Ng3 {[%emt 0:04:30]} Ra1 {[%emt 0:00:32]} 52. Rc3 {[%emt 0:00:30]} Ra4 {[%emt 0:00:16]} 53. Ne4+ {[%emt 0:00:30]} Ke5 {[%emt 0:01:35]} 54. Rc5+ {[%emt 0:00:30]} Ke6 {[%emt 0:00:14]} 55. Rc7 {[%emt 0:00:30]} Ra3+ {[%emt 0:00:40]} 56. Kf4 {[%emt 0:00:30]} g6 {[%emt 0:00:00]} 57. Rg7 {[%emt 0:00:30]} g5+ {[%emt 0:00:36]} 58. hxg5 {[%emt 0:00:30]} hxg5+ {[%emt 0:00:00]} 59. Nxg5+ {[%emt 0:00:30]} Kf6 {[%emt 0:00:00]} 60. Rc7 {[%emt 0:01:30]} Ra1 {[%emt 0:00:28]} 61. Ne4+ {[%emt 0:00:30]} Kg6 {[%emt 0:00:00]} 62. Rc6+ {[%emt 0:00:30]} Kg7 {[%emt 0:00:01]} 63. Kf5 {[%emt 0:00:30]} Ra5+ {[%emt 0:00:04]} 64. Nc5 {[%emt 0:00:30]} Ra1 {[%emt 0:00:16]} 65. Rc7+ {[%emt 0:01:30]} Kg8 {[%emt 0:00:02]} 66. Ne6 {[%emt 0:21:30]} 1-0